bitfinex/quotes_BTCUSD_20251230
["timestamp","ask_amount","ask_price","bid_price","bid_amount"]
[1767088076818,0.01137747,87893.0,87881.0,0.0114]
[1767088077273,0.01137721,87895.0,87881.0,0.0114]
[1767088077481,0.01137682,87898.0,87885.0,0.51328679]
[1767088077664,0.0227763,87902.0,87885.0,0.51328679]
[1767088077665,0.0114,87902.0,87885.0,0.64924679]
[1767088077860,0.01137565,87907.0,87898.0,0.000549]
[1767088078064,0.01137617,87903.0,87892.0,0.0114]
[1767088078304,0.0113763,87902.0,87892.0,0.0114]
[1767088078708,0.01137617,87903.0,87892.0,0.0114]
[1767088078962,0.0113763,87902.0,87892.0,0.0114]
[1767088079162,0.01137643,87901.0,87892.0,0.0114]
[1767088079403,0.0113763,87902.0,87892.0,0.0114]
[1767088079606,0.01137643,87901.0,87892.0,0.0114]
[1767088080144,0.01137669,87899.0,87892.0,0.0114]
[1767088080344,0.01137682,87898.0,87892.0,0.0114]
[1767088080547,0.01137669,87899.0,87892.0,0.0114]
[1767088080791,0.01137682,87898.0,87892.0,0.0114]
[1767088081151,0.01137669,87899.0,87892.0,0.0114]
[1767088081582,0.01137656,87900.0,87892.0,0.0114]
[1767088081781,0.01137682,87898.0,87892.0,0.0114]
[1767088081984,0.01137669,87899.0,87892.0,0.0114]
[1767088082325,0.01137695,87897.0,87892.0,0.0114]
[1767088082494,0.01137682,87898.0,87892.0,0.0114]
[1767088083963,0.01137669,87899.0,87892.0,0.0114]
[1767088084352,0.01137656,87900.0,87892.0,0.0114]
[1767088084529,0.01137669,87899.0,87892.0,0.0114]
[1767088084739,0.01137682,87898.0,87892.0,0.0114]
[1767088084940,0.01137643,87901.0,87892.0,0.0114]
[1767088085142,0.01137604,87904.0,87892.0,0.01135861]
[1767088085346,0.01137617,87903.0,87892.0,0.01135861]
[1767088085542,0.01137604,87904.0,87892.0,0.01135861]
[1767088085862,0.0004,87909.0,87894.0,0.51328679]
[1767088086061,0.0004,87909.0,87893.0,0.13596]
[1767088088075,0.01137565,87907.0,87893.0,0.13596]
[1767088088445,0.01137578,87906.0,87893.0,0.13596]
[1767088089058,0.0001671,87906.0,87893.0,0.13596]
[1767088090948,0.01154288,87906.0,87893.0,0.13596]
[1767088091146,0.01137591,87905.0,87893.0,0.13596]
[1767088091349,0.01137617,87903.0,87888.0,0.06132927]
[1767088091551,0.01137669,87899.0,87889.0,0.0114]
[1767088091934,0.0113763,87902.0,87889.0,0.0114]
[1767088092271,0.01137656,87900.0,87899.0,0.00067239]
[1767088092742,0.01137643,87901.0,87899.0,0.00067239]
[1767088093117,0.0113763,87902.0,87899.0,0.00067239]
[1767088093327,0.01137682,87898.0,87885.0,0.06132927]
[1767088093536,0.01137708,87896.0,87886.0,0.0114]
[1767088093734,0.01137695,87897.0,87886.0,0.01150734]
[1767088093882,0.01137708,87896.0,87886.0,0.01150734]
[1767088094086,0.01137695,87897.0,87886.0,0.01150734]
[1767088094562,0.01137708,87896.0,87886.0,0.01150734]
[1767088095222,0.01137734,87894.0,87886.0,0.01150734]
[1767088095482,0.06825879,87901.0,87886.0,0.01150734]
[1767088095604,0.01137669,87899.0,87894.0,0.000549]
[1767088095808,0.01137708,87896.0,87886.0,0.01150734]
[1767088097620,0.01137695,87897.0,87886.0,0.01150734]
[1767088098721,0.01137708,87896.0,87886.0,0.01150734]
[1767088099572,0.01137695,87897.0,87886.0,0.01150734]
[1767088102177,0.01137682,87898.0,87886.0,0.01150734]
[1767088102428,0.01137643,87901.0,87886.0,0.01150734]
[1767088102631,0.01137643,87901.0,87898.0,0.000549]
[1767088103053,0.01137643,87901.0,87886.0,0.01150734]
[1767088103054,0.02294288,87906.0,87890.0,0.51328679]
[1767088103659,0.02279787,87905.0,87890.0,0.51328679]
[1767088103860,0.01137604,87904.0,87890.0,0.51328679]
[1767088104027,0.07982246,87906.0,87890.0,0.51328679]
[1767088104028,0.02294288,87906.0,87890.0,0.51328679]
[1767088104439,0.01137591,87905.0,87890.0,0.51328679]
[1767088105795,0.01137643,87901.0,87890.0,0.51328679]
[1767088105999,0.01137643,87901.0,87887.0,0.1363]
[1767088106143,0.01137643,87901.0,87890.0,0.51328679]
[1767088106341,0.0113763,87902.0,87890.0,0.51328679]
[1767088106536,0.01137604,87904.0,87887.0,0.1363]
[1767088106805,0.01137617,87903.0,87890.0,0.51328679]
[1767088106998,0.01137604,87904.0,87890.0,0.51328679]
[1767088107361,0.01137617,87903.0,87890.0,0.51328679]
[1767088107567,0.01137617,87903.0,87889.0,0.1363]
[1767088107891,0.01137617,87903.0,87890.0,0.51328679]
[1767088108093,0.0113763,87902.0,87890.0,0.51328679]
[1767088108904,0.01137643,87901.0,87890.0,0.51328679]
[1767088109335,0.0113763,87902.0,87890.0,0.51328679]
[1767088110332,0.01137617,87903.0,87890.0,0.51328679]
[1767088110540,0.01137617,87903.0,87890.0,0.51313123]
[1767088111059,0.0113763,87902.0,87889.0,0.1363]
[1767088111466,0.01137604,87904.0,87889.0,0.1363]
[1767088111667,0.0113763,87902.0,87886.0,0.07283661]
[1767088111789,0.01137643,87901.0,87890.0,0.51313123]
[1767088112414,0.01137656,87900.0,87890.0,0.51313123]
[1767088112612,0.01137643,87901.0,87886.0,0.20913661]
[1767088112890,0.01137747,87893.0,87886.0,0.00010734]
[1767088113107,0.01137759,87892.0,87887.0,0.0114]
[1767088114034,0.06826326,87895.0,87887.0,0.0114]
[1767088114035,0.01137734,87894.0,87887.0,0.0114]
[1767088114234,0.01137721,87895.0,87887.0,0.0114]
[1767088114434,0.01137708,87896.0,87887.0,0.0114]
[1767088114630,0.01137682,87898.0,87887.0,0.0114]
[1767088114838,0.01137708,87896.0,87888.0,0.51313123]
[1767088115082,0.01137695,87897.0,87887.0,0.0114]
[1767088115489,0.06828141,87903.0,87887.0,0.0114]
[1767088115649,0.06828141,87903.0,87897.0,0.000549]
[1767088115650,0.0113763,87902.0,87897.0,0.000549]
[1767088115842,0.02277617,87903.0,87897.0,0.000549]
[1767088116086,0.02277617,87903.0,87893.0,0.51313123]
[1767088116662,0.0114,87903.0,87893.0,0.51313123]
[1767088117887,0.0001671,87906.0,87903.0,0.000549]
[1767088118101,0.01154288,87906.0,87903.0,0.000549]
[1767088118311,0.01137591,87905.0,87896.0,0.51313123]
[1767088118646,0.01137617,87903.0,87896.0,0.0114]
[1767088118918,0.01137604,87904.0,87896.0,0.0114]
[1767088119488,0.01154288,87906.0,87896.0,0.0114]
[1767088120182,0.01137591,87905.0,87896.0,0.0114]
[1767088122578,0.01137604,87904.0,87896.0,0.0114]
[1767088122771,0.01137591,87905.0,87896.0,0.0114]
[1767088122984,0.01154288,87906.0,87896.0,0.0114]
[1767088123113,0.01137591,87905.0,87896.0,0.0114]
[1767088123540,0.01154288,87906.0,87896.0,0.0114]
[1767088123745,0.01137591,87905.0,87896.0,0.0114]
[1767088124234,0.01137604,87904.0,87896.0,0.0114]
[1767088125048,0.0113763,87902.0,87890.0,0.51313123]
[1767088125229,0.01137669,87899.0,87891.0,0.0114]
[1767088128962,0.01137643,87901.0,87891.0,0.0114]
[1767088129379,0.0113763,87902.0,87891.0,0.0114]
[1767088129589,0.01137695,87897.0,87891.0,0.0114]
[1767088129760,0.01137682,87898.0,87891.0,0.0114]
[1767088130163,0.01137695,87897.0,87889.0,0.0114]
[1767088130567,0.01137708,87896.0,87889.0,0.0114]
[1767088130789,0.01137695,87897.0,87889.0,0.0114]
[1767088130986,0.01137695,87897.0,87886.0,0.51323857]
[1767088130987,0.01137721,87895.0,87886.0,0.51323857]
[1767088131170,0.01137708,87896.0,87887.0,0.0114]
[1767088131360,0.01137721,87895.0,87887.0,0.0114]
[1767088131850,0.01137734,87894.0,87887.0,0.0114]
[1767088132053,0.01133498,87898.0,87894.0,0.000549]
[1767088132257,0.01137695,87897.0,87888.0,0.51313123]
[1767088132622,0.01133498,87898.0,87894.0,0.0004]
[1767088133036,0.01137695,87897.0,87894.0,0.0004]
[1767088133249,0.01137682,87898.0,87894.0,0.0004]
[1767088134683,0.01137669,87899.0,87894.0,0.0004]
[1767088135072,0.01137643,87901.0,87894.0,0.0004]
[1767088135228,0.0113763,87902.0,87894.0,0.0004]
[1767088135735,0.01137643,87901.0,87894.0,0.0004]
[1767088135958,0.0113763,87902.0,87894.0,0.0004]
[1767088136614,0.01133434,87902.0,87894.0,0.0004]
[1767088137006,0.01137617,87903.0,87894.0,0.0004]
[1767088137579,0.01133348,87904.0,87894.0,0.0004]
[1767088137795,0.01154288,87906.0,87894.0,0.0004]
[1767088138223,0.01154288,87906.0,87896.0,0.51313123]
[1767088138632,0.01137591,87905.0,87896.0,0.51313123]
[1767088138834,0.01137604,87904.0,87895.0,0.51313123]
[1767088140422,0.01137604,87904.0,87894.0,0.0004]
[1767088140627,0.01137604,87904.0,87894.0,0.51353123]
[1767088140794,0.01137591,87905.0,87894.0,0.51353123]
[1767088141420,0.01137604,87904.0,87894.0,0.51353123]
[1767088141667,0.01137591,87905.0,87894.0,0.51353123]
[1767088142224,0.0001671,87906.0,87894.0,0.51353123]
[1767088142425,0.01154288,87906.0,87896.0,0.51313123]
[1767088142626,0.0001671,87906.0,87896.0,0.51313123]
[1767088143049,0.01154288,87906.0,87896.0,0.51313123]
[1767088143478,0.01154288,87906.0,87894.0,0.0004]
[1767088143650,0.01154288,87906.0,87896.0,0.51313123]
[1767088143855,0.0001671,87906.0,87896.0,0.51313123]
[1767088144257,0.01154288,87906.0,87896.0,0.51313123]
[1767088144563,0.01137591,87905.0,87896.0,0.51313123]
[1767088147098,0.01137617,87903.0,87896.0,0.51313123]
[1767088147293,0.01137604,87904.0,87896.0,0.51313123]
[1767088147496,0.01137604,87904.0,87894.0,0.51353123]
[1767088147707,0.01137617,87903.0,87894.0,0.51353123]
[1767088148042,0.01137682,87898.0,87890.0,0.51313123]
[1767088148266,0.0002,87896.0,87889.0,0.0114]
[1767088148467,0.01137656,87900.0,87889.0,0.0114]
[1767088148666,0.01137656,87900.0,87890.0,0.51313123]
[1767088148963,0.01137643,87901.0,87890.0,0.51313123]
[1767088149187,0.01137643,87901.0,87889.0,0.0114]
[1767088149346,0.01137682,87898.0,87890.0,0.51313123]
[1767088149550,0.01137682,87898.0,87889.0,0.0114]
[1767088149761,0.01137747,87893.0,87889.0,0.0112]
[1767088149977,0.01137734,87894.0,87889.0,0.0112]
[1767088150149,0.01137708,87896.0,87889.0,0.0112]
[1767088150345,0.01137695,87897.0,87889.0,0.0112]
[1767088150545,0.01137708,87896.0,87889.0,0.0112]
[1767088151215,0.01137721,87895.0,87889.0,0.0112]
[1767088152236,0.01137721,87895.0,87887.0,0.0114]
[1767088152444,0.01137734,87894.0,87887.0,0.0114]
[1767088152650,0.01137708,87896.0,87887.0,0.0114]
[1767088152892,0.01137708,87896.0,87894.0,0.000549]
[1767088153092,0.01137708,87896.0,87887.0,0.0114]
[1767088153494,0.01137721,87895.0,87887.0,0.0114]
[1767088153747,0.01137695,87897.0,87887.0,0.0114]
[1767088153952,0.01137708,87896.0,87887.0,0.0114]
[1767088154644,0.01137708,87896.0,87886.0,0.0114]
[1767088155689,0.01137721,87895.0,87886.0,0.0114]
[1767088157779,0.01137708,87896.0,87886.0,0.0114]
[1767088158691,0.01137721,87895.0,87886.0,0.0114]
[1767088160297,0.01137708,87896.0,87886.0,0.0114]
[1767088163162,0.01137695,87897.0,87886.0,0.0114]
[1767088163388,0.01137708,87896.0,87886.0,0.0114]
[1767088164567,0.05688431,87898.0,87886.0,0.0114]
[1767088164568,0.01137682,87898.0,87886.0,0.0114]
[1767088164757,0.01137695,87897.0,87886.0,0.0114]
[1767088165493,0.01137695,87897.0,87887.0,0.51313123]
[1767088166025,0.05688241,87901.0,87887.0,0.51313123]
[1767088166233,0.05688241,87901.0,87889.0,0.51313123]
[1767088166234,0.01137656,87900.0,87889.0,0.51313123]
[1767088166588,0.01137643,87901.0,87889.0,0.51313123]
[1767088167675,0.01137656,87900.0,87889.0,0.51313123]
[1767088168721,0.01137656,87900.0,87890.0,0.51313123]
[1767088169148,0.01137643,87901.0,87890.0,0.51313123]
[1767088169348,0.01137656,87900.0,87890.0,0.51313123]
[1767088171555,0.01137656,87900.0,87885.0,0.07279323]
[1767088171763,0.01137669,87899.0,87890.0,0.51313123]
[1767088172571,0.01137682,87898.0,87885.0,0.07279323]
[1767088172886,0.01137669,87899.0,87885.0,0.07279323]
[1767088173089,0.01137682,87898.0,87885.0,0.07279323]
[1767088173670,0.01137669,87899.0,87885.0,0.07279323]
[1767088174634,0.01137682,87898.0,87885.0,0.07279323]
[1767088174855,0.0114841,87898.0,87885.0,0.07279323]
[1767088176826,0.00010728,87898.0,87885.0,0.07279323]
[1767088177028,2.8e-07,87898.0,87885.0,0.07279323]
[1767088177279,2.8e-07,87898.0,87885.0,3.07279323]
[1767088178792,2.8e-07,87898.0,87886.0,0.20710323]
[1767088180855,0.05687777,87908.0,87886.0,0.20710323]
[1767088180856,0.01177539,87909.0,87889.0,0.14571]
[1767088180965,0.01177539,87909.0,87897.0,0.5132185]
[1767088181200,0.01177539,87909.0,87895.0,0.14571]
[1767088181201,0.01137604,87904.0,87895.0,0.14571]
[1767088181654,0.01137591,87905.0,87895.0,0.14571]
[1767088181872,0.01137604,87904.0,87895.0,0.14571]
[1767088182070,0.01137591,87905.0,87895.0,0.14571]
[1767088182212,0.01137604,87904.0,87895.0,0.14571]
[1767088182418,0.01137578,87906.0,87895.0,0.14571]
[1767088183113,0.01137565,87907.0,87895.0,0.14571]
[1767088183878,0.01137552,87908.0,87895.0,0.14571]
[1767088184787,0.0118,87909.0,87895.0,0.14571]
[1767088185931,0.02317539,87909.0,87895.0,0.14571]
[1767088186243,0.0800525,87909.0,87895.0,0.14571]
[1767088187022,0.01137578,87906.0,87895.0,0.14571]
[1767088187230,0.01137565,87907.0,87895.0,0.14571]
[1767088187606,0.01137578,87906.0,87895.0,0.14571]
[1767088187926,0.01137552,87908.0,87895.0,0.14571]
[1767088189084,0.02317539,87909.0,87895.0,0.14571]
[1767088189228,0.01137565,87907.0,87895.0,0.14571]
[1767088190039,0.01137578,87906.0,87895.0,0.14571]
[1767088190961,0.01137565,87907.0,87895.0,0.14571]
[1767088191386,0.01137578,87906.0,87895.0,0.14571]
[1767088191676,0.01137565,87907.0,87895.0,0.14571]
[1767088192362,0.01137578,87906.0,87895.0,0.14571]
[1767088193599,0.01137565,87907.0,87895.0,0.14571]
[1767088194407,0.01137604,87904.0,87895.0,0.14571]
[1767088194775,0.01137617,87903.0,87895.0,0.14571]
[1767088195377,0.01137604,87904.0,87895.0,0.14571]
[1767088195774,0.0113763,87902.0,87895.0,0.14571]
[1767088195979,0.01137617,87903.0,87895.0,0.14571]
[1767088196968,0.01137604,87904.0,87895.0,0.14571]
[1767088197183,0.0414932,89881.0,87885.0,3.0]
[1767088197184,0.000107,87895.0,87885.0,3.0]
[1767088197388,0.01137721,87895.0,87886.0,0.0114]
[1767088197584,0.01137747,87893.0,87885.0,3.0]
[1767088197783,0.0682642,87894.0,87885.0,3.0]
[1767088197784,0.01137734,87894.0,87885.0,3.0]
[1767088198452,0.01137721,87895.0,87885.0,3.0]
[1767088198640,0.01137708,87896.0,87885.0,3.0]
[1767088199762,0.01137721,87895.0,87885.0,3.0]
[1767088201042,0.01137721,87895.0,87885.0,3.00010728]
[1767088201970,0.01137708,87896.0,87885.0,3.00010728]
[1767088202172,0.01137734,87894.0,87885.0,3.00010728]
[1767088202477,0.01137747,87893.0,87885.0,3.00010728]
[1767088203003,0.01137734,87894.0,87885.0,3.00010728]
[1767088203323,0.01137721,87895.0,87885.0,3.00010728]
[1767088203956,0.01137708,87896.0,87885.0,3.00010728]
[1767088204184,0.01137734,87894.0,87885.0,3.00010728]
[1767088205773,0.01137708,87896.0,87885.0,3.00010728]
[1767088206541,0.01137695,87897.0,87885.0,3.00010728]
[1767088206706,0.01137708,87896.0,87885.0,3.00010728]
[1767088206911,0.01137695,87897.0,87885.0,3.00010728]
[1767088208253,0.01137708,87896.0,87885.0,3.00010728]
[1767088208970,0.01137721,87895.0,87885.0,3.00010728]
[1767088209171,0.01137708,87896.0,87885.0,3.00010728]
[1767088209474,0.01137721,87895.0,87885.0,3.00010728]
[1767088211026,0.01137734,87894.0,87885.0,3.00010728]
[1767088211274,0.01137721,87895.0,87885.0,3.00010728]
[1767088211498,0.01137708,87896.0,87885.0,3.00010728]
[1767088213083,0.01137721,87895.0,87885.0,3.00010728]
[1767088214326,0.01137734,87894.0,87885.0,3.00010728]
[1767088214628,0.01137708,87896.0,87885.0,3.00010728]
[1767088214832,0.01137721,87895.0,87885.0,3.00010728]
[1767088215034,0.01137708,87896.0,87885.0,3.00010728]
[1767088215812,0.01137721,87895.0,87885.0,3.00010728]
[1767088216017,0.01137708,87896.0,87885.0,3.00010728]
[1767088216634,0.01137721,87895.0,87885.0,3.00010728]
[1767088217019,0.01137708,87896.0,87885.0,3.00010728]
[1767088217478,0.0114,87901.0,87896.0,0.143302]
[1767088218067,0.0114,87901.0,87896.0,0.14286]
[1767088218425,0.01137591,87905.0,87896.0,0.14286]
[1767088218829,0.0114,87907.0,87896.0,0.14286]
[1767088223921,0.0004,87909.0,87898.0,0.14286]
[1767088226452,0.0004,87909.0,87900.0,0.14286]
[1767088227898,0.0114,87913.0,87900.0,0.14286]
[1767088228120,0.0114,87913.0,87900.0,0.6560785]
[1767088228525,0.0002106,87914.0,87913.0,4.2e-05]
[1767088228729,0.0002106,87914.0,87901.0,0.14286]
[1767088228730,0.0002106,87914.0,87906.0,0.0114]
[1767088229508,0.01158535,87914.0,87906.0,0.0114]
[1767088229832,0.01158535,87914.0,87903.0,0.0114]
[1767088229833,0.01137539,87909.0,87903.0,0.0114]
[1767088230240,0.01137527,87910.0,87904.0,0.14286]
[1767088230830,0.05687633,87911.0,87904.0,0.14286]
[1767088230831,0.01137514,87911.0,87904.0,0.14286]
[1767088231033,0.01137527,87910.0,87904.0,0.14286]
[1767088231437,0.01137514,87911.0,87904.0,0.14286]
[1767088231615,0.01137527,87910.0,87904.0,0.14286]
[1767088232554,0.01137539,87909.0,87904.0,0.14286]
[1767088233216,0.01137552,87908.0,87904.0,0.14286]
[1767088233422,0.01137539,87909.0,87904.0,0.14286]
[1767088234165,0.01137527,87910.0,87904.0,0.14286]
[1767088234518,0.01137539,87909.0,87904.0,0.14286]
[1767088234714,0.01137552,87908.0,87904.0,0.14286]
[1767088234910,0.01137539,87909.0,87904.0,0.14286]
[1767088235480,0.01137552,87908.0,87904.0,0.14286]
[1767088236746,0.01137539,87909.0,87904.0,0.14286]
[1767088237029,0.01137527,87910.0,87908.0,4.2e-05]
[1767088237244,0.0001473,87923.0,87910.0,0.00055]
[1767088237452,0.01152088,87923.0,87911.0,0.15426]
[1767088237666,0.01137371,87922.0,87911.0,0.0114]
[1767088238218,0.02279787,87922.0,87911.0,0.0114]
[1767088238460,0.0001473,87923.0,87911.0,0.0114]
[1767088238661,0.000358,87918.0,87911.0,0.0114]
[1767088239002,0.000358,87918.0,87911.0,0.15426]
[1767088239635,0.0001473,87923.0,87911.0,0.0114]
[1767088242009,0.0001473,87923.0,87913.0,0.51298666]
[1767088242208,0.0001473,87923.0,87911.0,0.0114]
[1767088242926,0.0001473,87923.0,87913.0,0.51298666]
[1767088244102,0.0001473,87923.0,87914.0,0.14286]
[1767088247536,0.0001473,87923.0,87915.0,0.0114]
[1767088248128,0.0001473,87923.0,87916.0,0.0114]
[1767088249042,0.00010572,87923.0,87916.0,0.0114]
[1767088250117,0.01137307,87927.0,87916.0,0.0114]
[1767088250314,0.01218307,87927.0,87916.0,0.01059]
[1767088250653,0.01137307,87927.0,87917.0,0.51298666]
[1767088251383,0.01161396,87930.0,87917.0,0.51298666]
[1767088251587,0.01137307,87927.0,87919.0,0.51298666]
[1767088251698,0.01137307,87927.0,87917.0,0.51298666]
[1767088252304,0.01137294,87928.0,87917.0,0.51298666]
[1767088252747,0.01137294,87928.0,87918.0,0.51298666]
[1767088252748,0.01137307,87927.0,87918.0,0.51298666]
[1767088253144,0.01137294,87928.0,87918.0,0.51298666]
[1767088253326,0.01137281,87929.0,87918.0,0.51298666]
[1767088253525,0.01166685,87930.0,87918.0,0.51298666]
[1767088253702,0.01137281,87929.0,87918.0,0.51298666]
[1767088254542,0.01166685,87930.0,87918.0,0.51298666]
[1767088254761,0.01166685,87930.0,87920.0,0.51298666]
[1767088255282,0.00029417,87930.0,87920.0,0.51298666]
[1767088255984,0.01166685,87930.0,87920.0,0.51298666]
[1767088257300,0.01137281,87929.0,87920.0,0.51298666]
[1767088257686,0.0104,87972.0,87920.0,0.51298666]
[1767088257982,0.13676,87990.0,87972.0,0.51262901]
[1767088257983,0.04110367,87990.0,87972.0,0.51262901]
[1767088258184,0.0002438,88031.0,87985.0,0.0059326]
[1767088258361,0.12129108,88029.0,87994.0,0.01136441]
[1767088258674,0.04732174,88029.0,88020.0,0.51298666]
[1767088258813,0.00295287,88030.0,88005.0,0.01148]
[1767088258814,0.01148,88028.0,88005.0,0.01148]
[1767088259018,0.01148,88028.0,88018.0,0.51298666]
[1767088259235,0.04552,88040.0,88005.0,0.04194144]
[1767088259236,0.01148,88030.0,88020.0,0.51298666]
[1767088259418,0.04552,88040.0,88020.0,5.287e-05]
[1767088259419,0.01148,88027.0,88020.0,5.287e-05]
[1767088259618,0.01148,88029.0,88020.0,5.287e-05]
[1767088259850,0.01144,88028.0,88020.0,5.287e-05]
[1767088260202,0.0113586,88039.0,88020.0,5.287e-05]
[1767088260402,0.01144,88038.0,88020.0,5.287e-05]
[1767088260637,0.01135886,88037.0,88020.0,5.287e-05]
[1767088260952,0.01144,88038.0,88020.0,5.287e-05]
[1767088261159,0.01136066,88023.0,88001.0,0.03046144]
[1767088261355,0.01144,88022.0,88002.0,0.02423071]
[1767088261582,0.51298666,88020.0,88010.0,0.0002]
[1767088261753,0.02726761,88011.0,88010.0,0.0002]
[1767088262142,0.02726761,88011.0,87994.0,0.0001891]
[1767088262382,0.51298666,88010.0,87995.0,0.02421606]
[1767088262581,0.02726761,88011.0,87995.0,0.02421606]
[1767088262582,0.51298666,88005.0,87995.0,0.02421606]
[1767088262976,0.51298666,88005.0,87981.0,0.03046144]
[1767088262977,0.01136337,88002.0,87977.0,0.01144]
[1767088263177,0.02726761,87997.0,87980.0,0.51298666]
[1767088263374,0.02726761,87997.0,87979.0,0.01136634]
[1767088263542,0.02726761,87997.0,87977.0,0.0228066]
[1767088263543,1.02597332,87995.0,87977.0,0.0228066]
[1767088263747,1.00241332,87995.0,87978.0,0.01136647]
[1767088263945,0.51298666,87988.0,87980.0,0.01136621]
[1767088264153,0.000241,87999.0,87988.0,0.000549]
[1767088264384,0.52442666,87998.0,87983.0,0.01136583]
[1767088264599,0.51298666,87992.0,87981.0,0.01136609]
[1767088264798,0.51298666,87992.0,87982.0,0.03556999]
[1767088265002,1.02597332,87992.0,87981.0,0.01141899]
[1767088265198,0.51298666,87991.0,87982.0,0.03556203]
[1767088265423,1.02597332,87992.0,87982.0,0.0002]
[1767088265620,0.51298666,87992.0,87982.0,0.01156596]
[1767088265825,0.01144,87998.0,87983.0,0.01136583]
[1767088266065,0.01144,87998.0,87985.0,0.01136557]
[1767088266219,0.000241,87999.0,87992.0,0.01136466]
[1767088266421,0.000241,87999.0,87996.0,0.01136415]
[1767088266647,0.000241,87999.0,87995.0,0.01136428]
[1767088266867,0.000241,87999.0,87987.0,0.05682656]
[1767088267086,0.000549,87995.0,87988.0,0.02417979]
[1767088267270,0.000241,87999.0,87989.0,0.02417979]
[1767088267427,0.51298666,87998.0,87988.0,0.01144]
[1767088267630,0.51298666,87998.0,87989.0,0.02417212]
[1767088268169,0.51298666,87999.0,87995.0,0.03046144]
[1767088268396,0.000858,87995.0,87994.0,0.03046144]
[1767088268608,0.000858,87995.0,87994.0,0.05462614]
[1767088268884,0.0002,88002.0,87994.0,0.0241647]
[1767088269130,0.0002,88002.0,87995.0,0.00874229]
[1767088269261,0.0002,88002.0,87986.0,0.01144]
[1767088269262,0.01144,88001.0,87986.0,0.01144]
[1767088269460,0.000308,87986.0,87982.0,0.0002]
[1767088269662,0.51298666,87992.0,87982.0,0.0002]
[1767088270088,0.51298666,87992.0,87989.0,0.000308]
[1767088270299,0.51298666,87999.0,87989.0,0.000308]
[1767088270673,0.01144,88001.0,87989.0,0.000308]
[1767088270880,0.51298666,87999.0,87989.0,0.000308]
[1767088271124,0.01363884,87991.0,87980.0,0.01066981]
[1767088271289,0.51298666,87990.0,87987.0,0.02416789]
[1767088271615,0.01394593,87991.0,87973.0,0.01136712]
[1767088271959,0.51298666,87987.0,87976.0,0.04061525]
[1767088272155,0.50705493,87986.0,87978.0,0.01144]
[1767088272352,0.01394593,87991.0,87978.0,0.01144]
[1767088272494,0.51298666,87988.0,87978.0,0.01144]
[1767088272711,0.01394593,87991.0,87978.0,0.52442666]
[1767088272911,0.01394593,87991.0,87980.0,0.51298666]
[1767088273736,0.00030709,87991.0,87980.0,0.51298666]
[1767088275229,0.00030709,87991.0,87980.0,0.55360191]
[1767088275890,0.51298666,88000.0,87991.0,0.000307]
[1767088276046,0.51298666,88000.0,87991.0,0.00061409]
[1767088276250,0.52270609,88001.0,87991.0,0.00030709]
[1767088276448,0.02108293,88001.0,87991.0,0.00030709]
[1767088276640,0.01136363,88000.0,87981.0,0.03889468]
[1767088276846,0.00971943,88001.0,87990.0,0.51298666]
[1767088277141,0.00971943,88001.0,87981.0,0.01147318]
[1767088277385,0.00971943,88001.0,87981.0,0.00010709]
[1767088277790,0.00971943,88001.0,87983.0,0.01136583]
[1767088277993,0.00971943,88001.0,87982.0,0.01136596]
[1767088278169,0.00971943,88001.0,87981.0,0.01147318]
[1767088278369,0.00971943,88001.0,87983.0,0.01136583]
[1767088278892,0.00971943,88001.0,87990.0,0.51298666]
[1767088280429,0.0002,88002.0,87990.0,0.51298666]
[1767088280659,0.0002,88002.0,87981.0,0.00010709]
[1767088280660,0.01136531,87987.0,87981.0,0.00010709]
[1767088280818,0.01363884,87986.0,87981.0,0.00010709]
[1767088281019,0.0113657,87984.0,87981.0,0.00010709]
[1767088282154,0.01136557,87985.0,87981.0,0.00010709]
[1767088282357,0.0113657,87984.0,87981.0,0.00010709]
[1767088282568,0.01144,87988.0,87981.0,0.00010709]
[1767088282774,0.02280518,87988.0,87981.0,0.00010709]
[1767088282985,0.01136544,87986.0,87981.0,0.00010709]
[1767088283167,0.01144,87988.0,87981.0,0.00010709]
[1767088283370,0.01136389,87998.0,87988.0,0.000549]
[1767088283583,0.01136441,87994.0,87989.0,0.0242704]
[1767088283807,0.01136428,87995.0,87990.0,0.02428202]
[1767088284030,0.01136441,87994.0,87991.0,0.02428202]
[1767088284227,0.01136441,87994.0,87992.0,0.02428202]
[1767088284523,0.01136441,87994.0,87993.0,0.02428202]
[1767088285294,0.01136441,87994.0,87982.0,0.01144]
[1767088285295,0.05682534,87989.0,87982.0,0.01144]
[1767088285504,0.05682412,87991.0,87981.0,0.01154709]
[1767088285730,0.05682412,87991.0,87981.0,0.01084054]
[1767088285902,0.05682412,87991.0,87970.0,0.0003883]
[1767088286121,0.52368282,87990.0,87972.0,0.01144]
[1767088286331,0.01060322,87989.0,87972.0,0.01144]
[1767088286530,0.01143999,87988.0,87972.0,0.01144]
[1767088286888,0.02237574,87988.0,87972.0,0.01144]
[1767088287092,0.01101056,87988.0,87972.0,0.01144]
[1767088287302,0.01101056,87988.0,87970.0,0.0003883]
[1767088287499,0.01101056,87988.0,87972.0,0.01144]
[1767088287787,0.01101056,87988.0,87973.0,0.01144]
[1767088289820,0.02237574,87988.0,87973.0,0.01144]
[1767088290297,0.01136531,87987.0,87973.0,0.01144]
[1767088290525,0.01136557,87985.0,87970.0,0.0003883]
[1767088290697,0.01101056,87988.0,87974.0,0.01144]
[1767088290845,0.02237574,87988.0,87974.0,0.01144]
[1767088291046,0.01136531,87987.0,87974.0,0.01144]
[1767088291277,0.02237574,87988.0,87974.0,0.01144]
[1767088291698,0.01101056,87988.0,87974.0,0.01144]
[1767088292237,0.02237574,87988.0,87974.0,0.01144]
[1767088292438,0.01136544,87986.0,87974.0,0.01144]
[1767088292674,0.01136531,87987.0,87970.0,0.0003883]
[1767088292873,0.01136531,87987.0,87972.0,0.01144]
[1767088293087,0.02237574,87988.0,87973.0,0.01144]
[1767088293286,0.01101056,87988.0,87973.0,0.01144]
[1767088293493,0.02237574,87988.0,87974.0,0.01144]
[1767088294085,0.01136531,87987.0,87974.0,0.01144]
[1767088294286,0.01136557,87985.0,87974.0,0.01144]
[1767088294532,0.01136544,87986.0,87974.0,0.01144]
[1767088294734,0.0113657,87984.0,87974.0,0.01144]
[1767088295285,0.01136557,87985.0,87974.0,0.01144]
[1767088295430,0.01136557,87985.0,87970.0,0.0003883]
[1767088295612,0.01136557,87985.0,87972.0,0.01144]
[1767088296469,0.05682616,87988.0,87972.0,0.01144]
[1767088296668,0.05682858,87984.0,87970.0,0.0003883]
[1767088296891,0.01136596,87982.0,87973.0,0.01144]
[1767088297019,0.01136596,87982.0,87974.0,0.01144]
[1767088297221,0.01136583,87983.0,87975.0,0.02445687]
[1767088297469,0.04525586,87984.0,87976.0,0.02445687]